[Event "Early-Titled-Tuesday-Blitz-August-29-2023"]
[Site "Chess.com"]
[Date "2023.08.29"]
[Round "8"]
[White "Witik"]
[Black "FREDERICKtheMATE"]
[Result "0-1"]
[WhiteElo "2783"]
[BlackElo "2508"]
[TimeControl "180+1"]
[EndTime "9:27:10 PDT"]
[Termination "FREDERICKtheMATE won on time"]

1. d4 {[%clk 0:02:59.8]} 1... c5 {[%clk 0:02:58]} 2. d5 {[%clk 0:02:59.9]} 2...
e6 {[%clk 0:02:57.7]} 3. e4 {[%clk 0:02:59.5]} 3... exd5 {[%clk 0:02:58.2]} 4.
exd5 {[%clk 0:02:59.3]} 4... d6 {[%clk 0:02:58.8]} 5. Nc3 {[%clk 0:02:59.9]}
5... g6 {[%clk 0:02:58.5]} 6. Bb5+ {[%clk 0:03:00.4]} 6... Bd7 {[%clk
0:02:58.3]} 7. a4 {[%clk 0:03:01.1]} 7... a6 {[%clk 0:02:58]} 8. Bc4 {[%clk
0:02:54.2]} 8... Bg7 {[%clk 0:02:57.6]} 9. Bf4 {[%clk 0:02:54.6]} 9... Qe7+
{[%clk 0:02:53.8]} 10. Qe2 {[%clk 0:02:45.6]} 10... Qxe2+ {[%clk 0:02:49.7]} 11.
Ngxe2 {[%clk 0:02:45.6]} 11... Be5 {[%clk 0:02:46.7]} 12. Ne4 {[%clk 0:02:29.5]}
12... Bxf4 {[%clk 0:02:44]} 13. Nxf4 {[%clk 0:02:29.6]} 13... Ke7 {[%clk
0:02:44.2]} 14. O-O {[%clk 0:02:28.4]} 14... Nf6 {[%clk 0:02:43.3]} 15. Ng5
{[%clk 0:02:20.6]} 15... h6 {[%clk 0:02:36.6]} 16. Rfe1+ {[%clk 0:02:19.3]}
16... Kf8 {[%clk 0:02:36.7]} 17. Nge6+ {[%clk 0:02:14.3]} 17... fxe6 {[%clk
0:02:33.1]} 18. Nxg6+ {[%clk 0:02:12.6]} 18... Kg7 {[%clk 0:02:32.8]} 19. Nxh8
{[%clk 0:02:12.7]} 19... exd5 {[%clk 0:02:33]} 20. Bf1 {[%clk 0:01:16.4]} 20...
Kxh8 {[%clk 0:02:31.7]} 21. Ra3 {[%clk 0:01:12.2]} 21... Nc6 {[%clk 0:02:28.7]}
22. Rb3 {[%clk 0:01:06.4]} 22... Nb4 {[%clk 0:02:21.3]} 23. Rf3 {[%clk
0:01:01.9]} 23... Rf8 {[%clk 0:02:08.9]} 24. c3 {[%clk 0:01:01.3]} 24... Nc6
{[%clk 0:02:08.7]} 25. b3 {[%clk 0:00:54.7]} 25... Ne5 {[%clk 0:02:06.9]} 26.
Rg3 {[%clk 0:00:53.1]} 26... Ne4 {[%clk 0:02:05.4]} 27. Rge3 {[%clk 0:00:48.4]}
27... Nxf2 {[%clk 0:02:05.4]} 28. h3 {[%clk 0:00:42.3]} 28... Ne4 {[%clk
0:02:02.5]} 29. c4 {[%clk 0:00:42.6]} 29... Nf6 {[%clk 0:02:01.6]} 30. cxd5
{[%clk 0:00:38.2]} 30... Nxd5 {[%clk 0:02:02.5]} 31. Rg3 {[%clk 0:00:36.4]}
31... Nf4 {[%clk 0:01:58.8]} 32. Rd1 {[%clk 0:00:34.1]} 32... Rf6 {[%clk
0:01:58.5]} 33. a5 {[%clk 0:00:31.8]} 33... Bc6 {[%clk 0:01:58.1]} 34. Kh2
{[%clk 0:00:26]} 34... Nh5 {[%clk 0:01:48]} 35. Rc3 {[%clk 0:00:23.4]} 35... Kg7
{[%clk 0:01:47.6]} 36. Be2 {[%clk 0:00:19.1]} 36... Nf4 {[%clk 0:01:47.3]} 37.
Rg3+ {[%clk 0:00:16.3]} 37... Kf7 {[%clk 0:01:45]} 38. Bf1 {[%clk 0:00:15.1]}
38... Neg6 {[%clk 0:01:29.2]} 39. Re3 {[%clk 0:00:12.8]} 39... Re6 {[%clk
0:01:24.2]} 40. Rg3 {[%clk 0:00:07]} 40... Nh4 {[%clk 0:01:17.4]} 41. Rg4 {[%clk
0:00:06.5]} 41... Nhxg2 {[%clk 0:01:17.5]} 42. Kg3 {[%clk 0:00:04.4]} 42... h5
{[%clk 0:01:09.1]} 43. Rxf4+ {[%clk 0:00:02.9]} 43... Nxf4 {[%clk 0:01:08.2]}
44. Kxf4 {[%clk 0:00:03.8]} 44... d5 {[%clk 0:01:04.9]} 45. Bg2 {[%clk
0:00:02.4]} 45... d4 {[%clk 0:01:00.1]} 46. Bxc6 {[%clk 0:00:02.3]} 46... Rxc6
{[%clk 0:01:00.6]} 47. Ke5 {[%clk 0:00:02]} 47... Kg6 {[%clk 0:00:57.2]} 48. Kd5
{[%clk 0:00:01.7]} 48... Kg5 {[%clk 0:00:54.9]} 49. Rg1+ {[%clk 0:00:02]} 49...
Kh4 {[%clk 0:00:54.6]} 50. Rg7 {[%clk 0:00:02.7]} 50... d3 {[%clk 0:00:53.4]}
51. Kc4 {[%clk 0:00:01.1]} 51... Rd6 {[%clk 0:00:52.4]} 52. Rg1 {[%clk
0:00:01.3]} 52... d2 {[%clk 0:00:52.5]} 53. Rd1 {[%clk 0:00:01.1]} 53... Kxh3
{[%clk 0:00:52.5]} 54. Kxc5 {[%clk 0:00:01.6]} 54... Rd7 {[%clk 0:00:52.4]} 55.
b4 {[%clk 0:00:02]} 55... Kg2 {[%clk 0:00:52.4]} 0-1

[Event "Early-Titled-Tuesday-Blitz-August-29-2023"]
[Site "Chess.com"]
[Date "2023.08.29"]
[Round "8"]
[White "ChessicallyInclined"]
[Black "Herzog2012"]
[Result "0-1"]
[WhiteElo "2667"]
[BlackElo "2440"]
[TimeControl "180+1"]
[EndTime "9:27:14 PDT"]
[Termination "Herzog2012 won by checkmate"]

1. b3 {[%clk 0:03:00.9]} 1... e5 {[%clk 0:02:59.8]} 2. Bb2 {[%clk 0:03:01.1]}
2... Nc6 {[%clk 0:03:00.4]} 3. e3 {[%clk 0:03:01.4]} 3... Nf6 {[%clk 0:02:58.8]}
4. Nf3 {[%clk 0:03:01.4]} 4... Bd6 {[%clk 0:02:58.8]} 5. Na3 {[%clk 0:03:00]}
5... O-O {[%clk 0:02:47.8]} 6. Nc4 {[%clk 0:02:59]} 6... Re8 {[%clk 0:02:43.8]}
7. Nxd6 {[%clk 0:02:59]} 7... cxd6 {[%clk 0:02:44.7]} 8. Be2 {[%clk 0:02:57.8]}
8... b6 {[%clk 0:02:40.4]} 9. O-O {[%clk 0:02:56.8]} 9... Bb7 {[%clk 0:02:40.9]}
10. d4 {[%clk 0:02:56.2]} 10... a5 {[%clk 0:02:36.5]} 11. a4 {[%clk 0:02:55]}
11... Rc8 {[%clk 0:02:28.1]} 12. Ba3 {[%clk 0:02:49.5]} 12... Nb4 {[%clk
0:02:15.8]} 13. Bxb4 {[%clk 0:02:21.5]} 13... axb4 {[%clk 0:02:15.6]} 14. Bc4
{[%clk 0:02:04]} 14... d5 {[%clk 0:01:45.4]} 15. Bb5 {[%clk 0:01:37]} 15... e4
{[%clk 0:01:42.2]} 16. Ne1 {[%clk 0:01:28.7]} 16... Rc3 {[%clk 0:01:34.7]} 17.
Qd2 {[%clk 0:01:23.9]} 17... Bc6 {[%clk 0:01:31.2]} 18. Be2 {[%clk 0:01:19.8]}
18... Qc7 {[%clk 0:01:28.2]} 19. g3 {[%clk 0:01:11.7]} 19... d6 {[%clk
0:01:24.8]} 20. Ng2 {[%clk 0:01:11.5]} 20... Bd7 {[%clk 0:01:22.7]} 21. Nf4
{[%clk 0:01:11.3]} 21... Rxc2 {[%clk 0:01:22.5]} 22. Qxb4 {[%clk 0:00:46.2]}
22... Rc8 {[%clk 0:01:12.9]} 23. Ba6 {[%clk 0:00:39.5]} 23... Ra8 {[%clk
0:01:10.6]} 24. Bb5 {[%clk 0:00:38.6]} 24... Bg4 {[%clk 0:01:07.7]} 25. Qa3
{[%clk 0:00:27.2]} 25... g5 {[%clk 0:01:05.3]} 26. Ng2 {[%clk 0:00:27.1]} 26...
Rc8 {[%clk 0:01:00.4]} 27. b4 {[%clk 0:00:17.3]} 27... Qb7 {[%clk 0:00:45.9]}
28. Rfc1 {[%clk 0:00:11.2]} 28... R8c3 {[%clk 0:00:37.2]} 29. Qxc3 {[%clk
0:00:09.9]} 29... Rxc3 {[%clk 0:00:36.8]} 30. Rxc3 {[%clk 0:00:10.8]} 30... h5
{[%clk 0:00:35.8]} 31. Bf1 {[%clk 0:00:10.2]} 31... h4 {[%clk 0:00:35]} 32. a5
{[%clk 0:00:09.8]} 32... bxa5 {[%clk 0:00:32]} 33. bxa5 {[%clk 0:00:09.8]} 33...
hxg3 {[%clk 0:00:31.2]} 34. fxg3 {[%clk 0:00:09]} 34... Bh3 {[%clk 0:00:20.6]}
35. a6 {[%clk 0:00:08.8]} 35... Qb2 {[%clk 0:00:20.6]} 36. Rcc1 {[%clk
0:00:03.9]} 36... Ng4 {[%clk 0:00:19.7]} 37. a7 {[%clk 0:00:03.3]} 37... Qf2+
{[%clk 0:00:12.3]} 38. Kh1 {[%clk 0:00:03.4]} 38... Bxg2+ {[%clk 0:00:10.2]} 39.
Bxg2 {[%clk 0:00:04.3]} 39... Qxe3 {[%clk 0:00:10.6]} 40. a8=Q+ {[%clk
0:00:04.7]} 40... Kg7 {[%clk 0:00:11]} 41. Qxd5 {[%clk 0:00:04.9]} 41... Nf2+
{[%clk 0:00:10.8]} 42. Kg1 {[%clk 0:00:04.8]} 42... Nh3+ {[%clk 0:00:11.1]} 43.
Kh1 {[%clk 0:00:05.1]} 43... Qg1+ {[%clk 0:00:11.7]} 44. Rxg1 {[%clk 0:00:04.7]}
44... Nf2# {[%clk 0:00:12.6]} 0-1

[Event "Early-Titled-Tuesday-Blitz-August-29-2023"]
[Site "Chess.com"]
[Date "2023.08.29"]
[Round "8"]
[White "Mr_November18"]
[Black "gm_rashid"]
[Result "0-1"]
[WhiteElo "1924"]
[BlackElo "2386"]
[TimeControl "180+1"]
[EndTime "9:27:15 PDT"]
[Termination "gm_rashid won by resignation"]

1. e4 {[%clk 0:03:00.9]} 1... e6 {[%clk 0:02:01.1]} 2. d4 {[%clk 0:02:58.5]}
2... d5 {[%clk 0:02:01.3]} 3. Nc3 {[%clk 0:02:58.3]} 3... Nf6 {[%clk 0:02:01.6]}
4. Bg5 {[%clk 0:02:57.8]} 4... Be7 {[%clk 0:02:00.9]} 5. e5 {[%clk 0:02:58.2]}
5... Nfd7 {[%clk 0:02:00.7]} 6. Bxe7 {[%clk 0:02:58.8]} 6... Qxe7 {[%clk
0:02:01.6]} 7. f4 {[%clk 0:02:59.1]} 7... a6 {[%clk 0:02:02.1]} 8. Nf3 {[%clk
0:02:59.1]} 8... c5 {[%clk 0:02:02.6]} 9. Ne2 {[%clk 0:02:58.8]} 9... Nc6 {[%clk
0:02:03.1]} 10. c3 {[%clk 0:02:59.1]} 10... b5 {[%clk 0:02:02.7]} 11. g3 {[%clk
0:02:58.8]} 11... Bb7 {[%clk 0:02:03]} 12. Bg2 {[%clk 0:02:58.7]} 12... Nb6
{[%clk 0:01:59.1]} 13. O-O {[%clk 0:02:57.7]} 13... O-O {[%clk 0:01:53.4]} 14.
h3 {[%clk 0:02:57.3]} 14... cxd4 {[%clk 0:01:53.4]} 15. Nexd4 {[%clk 0:02:56.5]}
15... Nc4 {[%clk 0:01:51]} 16. Qe2 {[%clk 0:02:53.8]} 16... Rac8 {[%clk
0:01:43.9]} 17. Kh2 {[%clk 0:02:53.1]} 17... b4 {[%clk 0:01:39.7]} 18. b3 {[%clk
0:02:39.6]} 18... Nb6 {[%clk 0:01:35.3]} 19. cxb4 {[%clk 0:02:26.7]} 19... Qxb4
{[%clk 0:01:24.7]} 20. Qe3 {[%clk 0:01:52.6]} 20... Nxd4 {[%clk 0:01:18.8]} 21.
Qxd4 {[%clk 0:01:44.6]} 21... Qxd4 {[%clk 0:01:11.1]} 22. Nxd4 {[%clk
0:01:44.4]} 22... Rc3 {[%clk 0:01:07.5]} 23. Rac1 {[%clk 0:01:31.9]} 23... Rfc8
{[%clk 0:01:07]} 24. Rxc3 {[%clk 0:01:30.2]} 24... Rxc3 {[%clk 0:01:07.9]} 25.
Rf2 {[%clk 0:01:26.8]} 25... Nd7 {[%clk 0:01:00]} 26. Rc2 {[%clk 0:01:22.4]}
26... Rxc2 {[%clk 0:00:58.5]} 27. Nxc2 {[%clk 0:01:22.5]} 27... Kf8 {[%clk
0:00:58]} 28. Kg1 {[%clk 0:01:21.2]} 28... Ke7 {[%clk 0:00:51.4]} 29. Kf2 {[%clk
0:01:19]} 29... Nc5 {[%clk 0:00:51.5]} 30. Nd4 {[%clk 0:01:07.1]} 30... f6
{[%clk 0:00:45]} 31. exf6+ {[%clk 0:01:06.4]} 31... gxf6 {[%clk 0:00:45.4]} 32.
Ke3 {[%clk 0:01:06.1]} 32... Kd6 {[%clk 0:00:33]} 33. Bf1 {[%clk 0:01:03.4]}
33... Bc8 {[%clk 0:00:31.6]} 34. g4 {[%clk 0:00:57.1]} 34... e5 {[%clk
0:00:30.7]} 35. fxe5+ {[%clk 0:00:56.7]} 35... fxe5 {[%clk 0:00:31]} 36. Nf5+
{[%clk 0:00:50.6]} 36... Bxf5 {[%clk 0:00:31]} 37. gxf5 {[%clk 0:00:50.3]} 37...
d4+ {[%clk 0:00:31.7]} 38. Kd2 {[%clk 0:00:48.9]} 38... e4 {[%clk 0:00:30.6]}
39. b4 {[%clk 0:00:48.9]} 39... Na4 {[%clk 0:00:17.4]} 40. Bxa6 {[%clk
0:00:45.4]} 40... Ke5 {[%clk 0:00:17.8]} 41. Bc8 {[%clk 0:00:40]} 41... e3+
{[%clk 0:00:17.2]} 42. Kd3 {[%clk 0:00:33.2]} 42... Nb2+ {[%clk 0:00:17.6]} 43.
Ke2 {[%clk 0:00:33]} 43... Kf4 {[%clk 0:00:16.1]} 44. f6 {[%clk 0:00:33.3]}
44... d3+ {[%clk 0:00:16.3]} 45. Kf1 {[%clk 0:00:25.2]} 45... e2+ {[%clk
0:00:14]} 46. Ke1 {[%clk 0:00:21.8]} 46... Ke3 {[%clk 0:00:13.9]} 0-1

[Event "Early-Titled-Tuesday-Blitz-August-29-2023"]
[Site "Chess.com"]
[Date "2023.08.29"]
[Round "8"]
[White "Kotofeyca"]
[Black "knightinshiningarmour16"]
[Result "1-0"]
[WhiteElo "2403"]
[BlackElo "2119"]
[TimeControl "180+1"]
[EndTime "9:27:15 PDT"]
[Termination "Kotofeyca won by checkmate"]

1. d4 {[%clk 0:03:00.9]} 1... Nf6 {[%clk 0:02:59]} 2. c4 {[%clk 0:03:01.1]} 2...
e6 {[%clk 0:02:58.9]} 3. Nf3 {[%clk 0:03:01.1]} 3... Bb4+ {[%clk 0:02:52.4]} 4.
Nbd2 {[%clk 0:03:00.9]} 4... c5 {[%clk 0:02:51.5]} 5. a3 {[%clk 0:03:00]} 5...
Bxd2+ {[%clk 0:02:40.2]} 6. Qxd2 {[%clk 0:03:00.1]} 6... cxd4 {[%clk 0:02:38.7]}
7. Nxd4 {[%clk 0:03:00.1]} 7... Nc6 {[%clk 0:02:38]} 8. g3 {[%clk 0:02:31.5]}
8... Nxd4 {[%clk 0:02:35.9]} 9. Qxd4 {[%clk 0:02:31]} 9... d6 {[%clk 0:02:30]}
10. Bg2 {[%clk 0:02:28.5]} 10... O-O {[%clk 0:02:27.3]} 11. O-O {[%clk
0:02:28.3]} 11... Qc7 {[%clk 0:02:23.6]} 12. Rd1 {[%clk 0:02:26.1]} 12... Bd7
{[%clk 0:02:04.9]} 13. b3 {[%clk 0:02:22.4]} 13... Ne8 {[%clk 0:01:14.3]} 14.
Bf4 {[%clk 0:02:19.1]} 14... e5 {[%clk 0:00:58.1]} 15. Bxe5 {[%clk 0:02:19.2]}
15... dxe5 {[%clk 0:00:59]} 16. Qxd7 {[%clk 0:02:19.2]} 16... Qb6 {[%clk
0:00:51.2]} 17. b4 {[%clk 0:01:53.9]} 17... Rb8 {[%clk 0:00:39.2]} 18. c5 {[%clk
0:01:47.5]} 18... Qa6 {[%clk 0:00:33.7]} 19. e3 {[%clk 0:01:46]} 19... Nf6
{[%clk 0:00:29.1]} 20. Qf5 {[%clk 0:01:42.8]} 20... Rfe8 {[%clk 0:00:21.8]} 21.
Rd6 {[%clk 0:01:32.4]} 21... Qe2 {[%clk 0:00:20.1]} 22. Rad1 {[%clk 0:01:16.6]}
22... e4 {[%clk 0:00:20]} 23. Bf1 {[%clk 0:00:45.2]} 23... Qc2 {[%clk
0:00:18.5]} 24. g4 {[%clk 0:00:37.1]} 24... h6 {[%clk 0:00:15.6]} 25. h4 {[%clk
0:00:37]} 25... b6 {[%clk 0:00:12.4]} 26. g5 {[%clk 0:00:36.6]} 26... hxg5
{[%clk 0:00:12.4]} 27. hxg5 {[%clk 0:00:37.5]} 27... Nh5 {[%clk 0:00:11.9]} 28.
R6d2 {[%clk 0:00:26.4]} 28... Qb3 {[%clk 0:00:10.4]} 29. c6 {[%clk 0:00:21.9]}
29... g6 {[%clk 0:00:10.3]} 30. Qd5 {[%clk 0:00:19]} 30... Qxa3 {[%clk
0:00:09.9]} 31. c7 {[%clk 0:00:18.9]} 31... Rbc8 {[%clk 0:00:10.3]} 32. Rc2
{[%clk 0:00:17.5]} 32... Qxb4 {[%clk 0:00:10.4]} 33. Ba6 {[%clk 0:00:16.3]}
33... Qe7 {[%clk 0:00:10.2]} 34. Bxc8 {[%clk 0:00:15.3]} 34... Rxc8 {[%clk
0:00:11.1]} 35. Qd8+ {[%clk 0:00:15.6]} 35... Rxd8 {[%clk 0:00:11.2]} 36.
cxd8=Q+ {[%clk 0:00:15.7]} 36... Qxd8 {[%clk 0:00:10.8]} 37. Rxd8+ {[%clk
0:00:16.6]} 37... Kg7 {[%clk 0:00:11]} 38. Rd7 {[%clk 0:00:17.2]} 38... a5
{[%clk 0:00:08]} 39. Rcc7 {[%clk 0:00:17.7]} 39... a4 {[%clk 0:00:05.4]} 40.
Rxf7+ {[%clk 0:00:18.2]} 40... Kg8 {[%clk 0:00:05.3]} 41. Rfd7 {[%clk
0:00:17.4]} 41... Kf8 {[%clk 0:00:04.7]} 42. Rc8# {[%clk 0:00:17.8]} 1-0

[Event "Early-Titled-Tuesday-Blitz-August-29-2023"]
[Site "Chess.com"]
[Date "2023.08.29"]
[Round "8"]
[White "Good_Knight_Kiss"]
[Black "stasOR4ik"]
[Result "1-0"]
[WhiteElo "2382"]
[BlackElo "2473"]
[TimeControl "180+1"]
[EndTime "9:27:16 PDT"]
[Termination "Good_Knight_Kiss won on time"]

1. e4 {[%clk 0:03:00.9]} 1... c6 {[%clk 0:02:20]} 2. d4 {[%clk 0:02:59.2]} 2...
d5 {[%clk 0:02:20.9]} 3. e5 {[%clk 0:02:55.4]} 3... c5 {[%clk 0:02:13.9]} 4.
dxc5 {[%clk 0:02:56.3]} 4... e6 {[%clk 0:02:14]} 5. a3 {[%clk 0:02:53.7]} 5...
Bxc5 {[%clk 0:02:14.1]} 6. Qg4 {[%clk 0:02:53.1]} 6... Ne7 {[%clk 0:02:03.3]} 7.
Nf3 {[%clk 0:02:52.8]} 7... h5 {[%clk 0:02:02.4]} 8. Qxg7 {[%clk 0:02:45]} 8...
Ng6 {[%clk 0:01:57.3]} 9. Bd3 {[%clk 0:02:34.8]} 9... Bf8 {[%clk 0:01:55.3]} 10.
Qf6 {[%clk 0:02:28.8]} 10... Be7 {[%clk 0:01:52.6]} 11. Qg7 {[%clk 0:02:29]}
11... Bf8 {[%clk 0:01:51]} 12. Qf6 {[%clk 0:02:26.1]} 12... Qxf6 {[%clk
0:01:38.4]} 13. exf6 {[%clk 0:02:27]} 13... Nd7 {[%clk 0:01:38.5]} 14. Bg5
{[%clk 0:02:17.4]} 14... Bh6 {[%clk 0:01:32.9]} 15. h4 {[%clk 0:02:14.1]} 15...
e5 {[%clk 0:01:28.2]} 16. Bxg6 {[%clk 0:02:02.1]} 16... fxg6 {[%clk 0:01:26.9]}
17. Nc3 {[%clk 0:02:00]} 17... e4 {[%clk 0:01:20.2]} 18. Nd4 {[%clk 0:01:48.1]}
18... Nb6 {[%clk 0:01:18.8]} 19. a4 {[%clk 0:01:28.6]} 19... a5 {[%clk
0:01:09.8]} 20. Ndb5 {[%clk 0:01:25.6]} 20... Kf7 {[%clk 0:01:08.3]} 21. O-O-O
{[%clk 0:01:22.5]} 21... Be6 {[%clk 0:01:06.7]} 22. Nc7 {[%clk 0:01:11.3]} 22...
Rac8 {[%clk 0:01:04.5]} 23. N7xd5 {[%clk 0:01:10.5]} 23... Bxd5 {[%clk
0:00:53.3]} 24. Nxd5 {[%clk 0:01:11.4]} 24... Nxa4 {[%clk 0:00:53.6]} 25. Rd4
{[%clk 0:00:46.7]} 25... Nc5 {[%clk 0:00:51.5]} 26. Kb1 {[%clk 0:00:33.9]} 26...
Ne6 {[%clk 0:00:50.5]} 27. Rxe4 {[%clk 0:00:33.1]} 27... Bxg5 {[%clk 0:00:49.7]}
28. hxg5 {[%clk 0:00:31.9]} 28... Rc5 {[%clk 0:00:41.3]} 29. c4 {[%clk
0:00:30.9]} 29... Rhc8 {[%clk 0:00:31.8]} 30. Rhe1 {[%clk 0:00:27.7]} 30... Nxg5
{[%clk 0:00:27.6]} 31. Re7+ {[%clk 0:00:27.6]} 31... Kf8 {[%clk 0:00:27.3]} 32.
Nb6 {[%clk 0:00:16.5]} 32... R8c7 {[%clk 0:00:12.9]} 33. Nd7+ {[%clk 0:00:16.4]}
33... Rxd7 {[%clk 0:00:12]} 34. Rxd7 {[%clk 0:00:17.3]} 34... Rxc4 {[%clk
0:00:11.8]} 35. Rxb7 {[%clk 0:00:12]} 35... Ne4 {[%clk 0:00:10.2]} 36. Rd1
{[%clk 0:00:06.8]} 36... Nxf6 {[%clk 0:00:03.6]} 37. Rd8+ {[%clk 0:00:06.1]}
37... Ne8 {[%clk 0:00:04.3]} 38. Rdd7 {[%clk 0:00:03.2]} 38... Rf4 {[%clk
0:00:02.1]} 39. f3 {[%clk 0:00:03.2]} 39... h4 {[%clk 0:00:02.1]} 40. Rh7 {[%clk
0:00:02.8]} 1-0

[Event "Early-Titled-Tuesday-Blitz-August-29-2023"]
[Site "Chess.com"]
[Date "2023.08.29"]
[Round "8"]
[White "bazar-wokzal"]
[Black "workhard91"]
[Result "1-0"]
[WhiteElo "2602"]
[BlackElo "2458"]
[TimeControl "180+1"]
[EndTime "9:27:17 PDT"]
[Termination "bazar-wokzal won on time"]

1. e4 {[%clk 0:03:00.9]} 1... c5 {[%clk 0:02:59.8]} 2. c3 {[%clk 0:02:59.8]}
2... Nf6 {[%clk 0:02:59.3]} 3. e5 {[%clk 0:02:59.5]} 3... Nd5 {[%clk 0:03:00]}
4. d4 {[%clk 0:02:59]} 4... cxd4 {[%clk 0:03:00.9]} 5. cxd4 {[%clk 0:02:58.8]}
5... d6 {[%clk 0:03:01.3]} 6. Bc4 {[%clk 0:02:57.6]} 6... e6 {[%clk 0:03:01.7]}
7. Nf3 {[%clk 0:02:57.1]} 7... Nc6 {[%clk 0:03:00.7]} 8. O-O {[%clk 0:02:56.7]}
8... Be7 {[%clk 0:02:40.3]} 9. Qe2 {[%clk 0:02:56.3]} 9... O-O {[%clk
0:02:38.6]} 10. Qe4 {[%clk 0:02:56.7]} 10... Ndb4 {[%clk 0:01:48.2]} 11. Bb3
{[%clk 0:02:55.6]} 11... dxe5 {[%clk 0:01:39.5]} 12. dxe5 {[%clk 0:02:55.5]}
12... Qd3 {[%clk 0:01:39]} 13. Re1 {[%clk 0:02:45.5]} 13... Qxe4 {[%clk
0:01:37.8]} 14. Rxe4 {[%clk 0:02:44.9]} 14... Nd3 {[%clk 0:01:38.7]} 15. Nc3
{[%clk 0:02:41.3]} 15... Rd8 {[%clk 0:01:21.4]} 16. Bc4 {[%clk 0:02:13.4]} 16...
Nxc1 {[%clk 0:01:17.3]} 17. Rxc1 {[%clk 0:02:12.9]} 17... b6 {[%clk 0:01:09]}
18. Ree1 {[%clk 0:01:56.4]} 18... Bb7 {[%clk 0:01:07.7]} 19. Kf1 {[%clk
0:01:47.1]} 19... Nd4 {[%clk 0:00:30.1]} 20. Nxd4 {[%clk 0:01:41.7]} 20... Rxd4
{[%clk 0:00:31]} 21. Be2 {[%clk 0:01:39.8]} 21... Rd2 {[%clk 0:00:29.9]} 22.
Red1 {[%clk 0:01:31.8]} 22... Rad8 {[%clk 0:00:21.1]} 23. Rxd2 {[%clk
0:01:24.5]} 23... Rxd2 {[%clk 0:00:22]} 24. Rd1 {[%clk 0:01:24.8]} 24... Rxd1+
{[%clk 0:00:14.3]} 25. Bxd1 {[%clk 0:01:21]} 25... Bc5 {[%clk 0:00:14.9]} 26. f4
{[%clk 0:01:10.7]} 26... Bd4 {[%clk 0:00:11.8]} 27. g3 {[%clk 0:01:03.3]} 27...
g5 {[%clk 0:00:10.3]} 28. fxg5 {[%clk 0:00:48.8]} 28... Bxe5 {[%clk 0:00:10.2]}
29. Ke2 {[%clk 0:00:40.1]} 29... Kg7 {[%clk 0:00:10]} 30. Bc2 {[%clk 0:00:37.9]}
30... a6 {[%clk 0:00:10]} 31. Ke3 {[%clk 0:00:25.3]} 31... b5 {[%clk 0:00:10]}
32. a3 {[%clk 0:00:23.2]} 32... Bc6 {[%clk 0:00:09.3]} 33. Nd1 {[%clk
0:00:14.7]} 33... a5 {[%clk 0:00:05.9]} 34. Bd3 {[%clk 0:00:10.8]} 34... b4
{[%clk 0:00:05.6]} 35. axb4 {[%clk 0:00:10.4]} 35... axb4 {[%clk 0:00:06.5]} 36.
b3 {[%clk 0:00:10.4]} 36... Bd5 {[%clk 0:00:06.3]} 37. Bc2 {[%clk 0:00:10.4]}
37... Bg2 {[%clk 0:00:04]} 38. Nf2 {[%clk 0:00:09.4]} 38... Bc7 {[%clk
0:00:03.1]} 39. Ne4 {[%clk 0:00:07]} 39... Bb6+ {[%clk 0:00:03.3]} 40. Kf4
{[%clk 0:00:07.2]} 1-0

[Event "Early-Titled-Tuesday-Blitz-August-29-2023"]
[Site "Chess.com"]
[Date "2023.08.29"]
[Round "8"]
[White "VladimirKramnik"]
[Black "LionTheLeon_06"]
[Result "1-0"]
[WhiteElo "2952"]
[BlackElo "2776"]
[TimeControl "180+1"]
[EndTime "9:27:20 PDT"]
[Termination "VladimirKramnik won by resignation"]

1. e4 {[%clk 0:03:00.9]} 1... c6 {[%clk 0:02:58.9]} 2. d4 {[%clk 0:03:00.4]}
2... d5 {[%clk 0:02:59.8]} 3. Nd2 {[%clk 0:03:00]} 3... dxe4 {[%clk 0:02:57.5]}
4. Nxe4 {[%clk 0:03:00.6]} 4... Nd7 {[%clk 0:02:56.8]} 5. c3 {[%clk 0:02:57.7]}
5... Ngf6 {[%clk 0:02:56.9]} 6. Bd3 {[%clk 0:02:56.6]} 6... Nxe4 {[%clk
0:02:56]} 7. Bxe4 {[%clk 0:02:56.8]} 7... Nf6 {[%clk 0:02:56.9]} 8. Bc2 {[%clk
0:02:57.2]} 8... Bg4 {[%clk 0:02:53.9]} 9. f3 {[%clk 0:02:50]} 9... Bh5 {[%clk
0:02:51.5]} 10. Ne2 {[%clk 0:02:50.1]} 10... Bg6 {[%clk 0:02:51]} 11. Bb3 {[%clk
0:02:46.7]} 11... e6 {[%clk 0:02:51.2]} 12. Bf4 {[%clk 0:02:42.8]} 12... Bd6
{[%clk 0:02:45.8]} 13. Qd2 {[%clk 0:02:41.9]} 13... a5 {[%clk 0:02:40.7]} 14. a4
{[%clk 0:02:34.7]} 14... Nd5 {[%clk 0:02:31.4]} 15. Bxd6 {[%clk 0:02:30.3]}
15... Qxd6 {[%clk 0:02:32.3]} 16. h4 {[%clk 0:02:26.3]} 16... h6 {[%clk
0:02:29.9]} 17. O-O-O {[%clk 0:02:06]} 17... O-O {[%clk 0:01:39]} 18. g4 {[%clk
0:01:58.5]} 18... b5 {[%clk 0:01:27.5]} 19. h5 {[%clk 0:01:58.1]} 19... Bh7
{[%clk 0:01:27.5]} 20. g5 {[%clk 0:01:57.6]} 20... bxa4 {[%clk 0:01:07.6]} 21.
Bxa4 {[%clk 0:01:50.4]} 21... Nb6 {[%clk 0:01:06.3]} 22. gxh6 {[%clk 0:01:42.3]}
22... f6 {[%clk 0:00:58.1]} 23. hxg7 {[%clk 0:01:26.2]} 23... Rf7 {[%clk
0:00:41.7]} 24. Bc2 {[%clk 0:01:21.6]} 24... Rxg7 {[%clk 0:00:09.5]} 25. Rdg1
{[%clk 0:01:17]} 25... Ra7 {[%clk 0:00:09.6]} 26. Bxh7+ {[%clk 0:01:06.8]} 26...
Kxh7 {[%clk 0:00:09.6]} 27. Rg6 {[%clk 0:01:05.3]} 27... Nd5 {[%clk 0:00:04.9]}
28. Rhg1 {[%clk 0:00:46.3]} 28... Qf8 {[%clk 0:00:02.5]} 29. Nf4 {[%clk
0:00:35.7]} 29... Nxf4 {[%clk 0:00:02.1]} 30. Qxf4 {[%clk 0:00:35.7]} 30... f5
{[%clk 0:00:01.3]} 31. Qh6+ {[%clk 0:00:31.2]} 31... Kg8 {[%clk 0:00:01.4]} 32.
Rxg7+ {[%clk 0:00:29.9]} 32... Rxg7 {[%clk 0:00:02.3]} 33. Qxe6+ {[%clk
0:00:26.7]} 33... Kh7 {[%clk 0:00:02.2]} 34. Rxg7+ {[%clk 0:00:26.2]} 34... Qxg7
{[%clk 0:00:02.6]} 35. Qg6+ {[%clk 0:00:24.1]} 35... Qxg6 {[%clk 0:00:02.4]} 36.
hxg6+ {[%clk 0:00:24.2]} 36... Kxg6 {[%clk 0:00:03.3]} 37. Kd2 {[%clk
0:00:23.8]} 37... Kg5 {[%clk 0:00:02.8]} 38. Ke3 {[%clk 0:00:23.7]} 38... Kg6
{[%clk 0:00:03.3]} 39. Kf4 {[%clk 0:00:23]} 39... Kf6 {[%clk 0:00:04.2]} 40. c4
{[%clk 0:00:22.8]} 40... a4 {[%clk 0:00:04.4]} 41. d5 {[%clk 0:00:20.7]} 41...
c5 {[%clk 0:00:04.1]} 42. d6 {[%clk 0:00:19.8]} 42... Ke6 {[%clk 0:00:04.3]} 43.
d7 {[%clk 0:00:20]} 43... Kxd7 {[%clk 0:00:04.7]} 44. Kxf5 {[%clk 0:00:20.7]}
44... Kc6 {[%clk 0:00:04.9]} 45. Ke5 {[%clk 0:00:20.4]} 45... Kb6 {[%clk
0:00:05.3]} 46. Kd5 {[%clk 0:00:20.6]} 1-0